bitfinex-derivatives/quotes_SOLF0:USTF0_20250911
["timestamp","ask_amount","ask_price","bid_price","bid_amount"]
[1757632110979,9.97989535,228.2,228.14,7.23279633]
[1757632111175,9.65658293,228.19,228.15,7.2]
[1757632111374,3.50962726,228.18,228.15,7.2]
[1757632111576,3.11,228.19,228.14,0.03279633]
[1757632111771,3.11,228.17,228.15,7.2]
[1757632111983,3.11,228.26,228.15,7.2]
[1757632112177,9.97927279,228.25,228.15,7.2]
[1757632112480,3.11,228.23,228.15,7.2]
[1757632112674,3.11,228.21,228.15,7.2]
[1757632112878,27.18,228.26,228.14,7.23279633]
[1757632112879,13.08927279,228.2,228.14,7.23279633]
[1757632113178,3.11,228.18,228.14,0.03279633]
[1757632113376,3.11,228.22,228.14,0.03279633]
[1757632113576,3.11,228.2,228.14,0.03279633]
[1757632113780,3.11,228.18,228.14,0.03279633]
[1757632113974,3.11,228.16,228.14,0.03279633]
[1757632117678,3.11,228.16,228.14,7.23279633]
[1757632118676,3.11,228.2,228.14,0.03279633]
[1757632118986,3.11,228.18,228.14,0.03279633]
[1757632119284,3.11,228.16,228.14,0.03279633]
[1757632126089,3.11,228.16,228.14,7.23279633]
[1757632126289,3.11,228.2,228.14,7.23279633]
[1757632126486,3.11,228.18,228.14,7.23279633]
[1757632126688,3.11,228.16,228.14,7.23279633]
[1757632129887,2.66143054,228.21,228.14,0.03279633]
[1757632130094,13.10952117,228.2,228.14,0.03279633]
[1757632130392,9.99952117,228.19,228.14,7.23279633]
[1757632130592,3.11,228.17,228.14,7.23279633]
[1757632130793,6.56315765,228.16,228.14,7.23279633]
[1757632130989,3.11,228.17,228.14,7.23279633]
[1757632131189,3.11,228.21,228.15,7.2]
[1757632131382,9.99991264,228.2,228.14,0.03279633]
[1757632131587,30.84485446,228.26,228.14,0.03279633]
[1757632131588,6.56339598,228.19,228.15,7.2]
[1757632131783,3.11,228.22,228.15,7.2]
[1757632131990,9.99877834,228.21,228.15,7.2]
[1757632132190,6.56264882,228.2,228.15,7.2]
[1757632132394,3.11,228.22,228.15,7.2]
[1757632132587,6.56214568,228.21,228.15,7.2]
[1757632132788,6.56214568,228.2,228.14,0.03279633]
[1757632133091,3.11,228.22,228.15,7.2]
[1757632133291,6.56214533,228.21,228.15,7.2]
[1757632133494,6.56214533,228.2,228.15,7.2]
[1757632133683,3.11,228.22,228.15,7.2]
[1757632133887,6.56162387,228.21,228.15,7.2]
[1757632134088,6.56162387,228.2,228.14,0.03279633]
[1757632134392,3.11,228.22,228.15,7.2]
[1757632134591,6.56122691,228.21,228.15,7.2]
[1757632134788,6.56122691,228.2,228.14,0.03279633]
[1757632135090,3.11,228.22,228.15,7.2]
[1757632135291,6.56122655,228.21,228.15,7.2]
[1757632135487,6.56122655,228.2,228.15,7.2]
[1757632135693,3.11,228.22,228.15,7.2]
[1757632135994,6.56093795,228.21,228.15,7.2]
[1757632136191,6.56093795,228.2,228.15,7.2]
[1757632136388,3.11,228.22,228.15,7.2]
[1757632136584,6.56044788,228.21,228.15,7.2]
[1757632136785,6.56044788,228.2,228.15,7.2]
[1757632136986,3.11,228.22,228.15,7.2]
[1757632137192,6.56044788,228.21,228.15,7.2]
[1757632137391,6.56044788,228.2,228.14,0.03279633]
[1757632137588,3.11,228.22,228.15,7.06]
[1757632137792,6.5600334,228.21,228.15,7.06]
[1757632137996,6.5600334,228.2,228.14,0.03279633]
[1757632138198,3.11,228.22,228.15,7.06]
[1757632138391,6.56304888,228.21,228.15,7.06]
[1757632138599,6.56304888,228.2,228.15,7.06]
[1757632138796,3.11,228.22,228.15,7.06]
[1757632139092,6.56289511,228.21,228.15,7.06]
[1757632139295,6.56289511,228.2,228.15,7.06]
[1757632139600,3.11,228.22,228.15,7.06]
[1757632139801,6.56261326,228.21,228.15,7.06]
[1757632140000,6.56261326,228.2,228.14,0.03279633]
[1757632140198,3.11,228.22,228.15,7.06]
[1757632140402,6.56263589,228.21,228.15,7.06]
[1757632140599,6.56263589,228.2,228.14,0.03279633]
[1757632140799,3.11,228.22,228.15,7.06]
[1757632140998,6.5626644,228.21,228.15,7.06]
[1757632141303,6.5626644,228.2,228.14,0.03279633]
[1757632141505,3.11,228.22,228.15,7.06]
[1757632141806,6.56245592,228.21,228.15,7.06]
[1757632142101,6.56245592,228.2,228.14,0.03279633]
[1757632142292,3.12,228.22,228.15,7.06]
[1757632142492,3.12,228.2,228.15,7.06]
[1757632142797,3.12,228.22,228.15,7.06]
[1757632143098,6.56230449,228.21,228.15,7.06]
[1757632143307,9.68230449,228.2,228.14,7.09279633]
[1757632143599,3.12,228.2,228.14,7.09279633]
[1757632146301,4.82286283,228.2,228.14,7.09279633]
[1757632149202,1.70286283,228.2,228.14,7.09279633]
[1757632149412,1.70286283,228.23,228.14,7.09279633]
[1757632149606,6.55620614,228.22,228.14,7.09279633]
[1757632149807,6.55620614,228.21,228.14,7.06]
[1757632150007,1.70286283,228.23,228.16,0.03288204]
[1757632150203,3.12,228.24,228.16,0.03288204]
[1757632150204,6.55610958,228.22,228.18,7.06]
[1757632150406,3.12,228.24,228.18,7.06]
[1757632153108,1.70286283,228.26,228.18,7.06]
[1757632153309,6.54687322,228.25,228.18,7.06]
[1757632153609,3.12,228.27,228.18,7.06]
[1757632153808,13.09405509,228.33,228.18,7.06]
[1757632153809,1.70286283,228.29,228.18,7.06]
[1757632154105,6.54720377,228.28,228.18,7.06]
[1757632154312,1.70286283,228.29,228.18,7.06]
[1757632154612,6.54461013,228.28,228.22,7.06]
[1757632154909,1.70286283,228.29,228.22,7.06]
[1757632155210,1.70286283,228.32,228.22,7.06]
[1757632155403,4.82286283,228.35,228.22,7.06]
[1757632155608,6.54490686,228.34,228.22,7.06]
[1757632155906,6.54490686,228.34,228.2,1.70286283]
[1757632155907,4.82286283,228.35,228.27,7.06]
[1757632156105,6.54491539,228.34,228.27,7.06]
[1757632156307,3.12,228.35,228.27,7.06]
[1757632156809,3.12,228.38,228.27,7.06]
[1757632157015,3.50173836,228.37,228.27,7.06]
[1757632157209,3.12,228.38,228.27,7.06]
[1757632157716,3.12,228.37,228.3,0.03361689]
[1757632157904,1.70286283,228.35,228.3,0.03361689]
[1757632158315,3.12,228.34,228.31,7.06]
[1757632158815,3.12,228.34,228.3,0.03361689]
[1757632159111,1.70286283,228.35,228.3,0.03361689]
[1757632159912,3.12,228.34,228.3,0.03361689]
[1757632160110,1.70286283,228.35,228.3,0.03361689]
[1757632160317,3.12,228.34,228.3,0.03361689]
[1757632161023,1.70286283,228.35,228.3,0.03361689]
[1757632161217,3.12,228.34,228.3,0.03361689]
[1757632161516,1.70286283,228.35,228.3,0.03361689]
[1757632161917,3.12,228.34,228.3,0.03361689]
[1757632162108,1.70286283,228.35,228.3,0.03361689]
[1757632162419,3.12,228.34,228.3,0.03361689]
[1757632162616,1.70286283,228.35,228.3,0.03361689]
[1757632162916,3.12,228.34,228.3,0.03361689]
[1757632163112,1.70286283,228.35,228.3,0.03361689]
[1757632163310,3.12,228.34,228.3,0.03361689]
[1757632163717,3.12,228.34,228.31,7.06]
[1757632164114,1.70286283,228.35,228.3,0.03361689]
[1757632164515,3.12,228.34,228.3,0.03361689]
[1757632164715,1.70286283,228.35,228.3,0.03361689]
[1757632165119,3.12,228.34,228.3,0.03361689]
[1757632165314,3.12,228.34,228.3,7.09361689]
[1757632166422,3.12,228.34,228.31,7.06]
[1757632166616,1.70286283,228.35,228.3,0.03361689]
[1757632166821,3.12,228.34,228.31,7.06]
[1757632167320,3.12,228.34,228.3,0.03361689]
[1757632167522,3.12,228.34,228.3,7.09361689]
[1757632168418,3.14,228.34,228.3,7.09361689]
[1757632169524,3.14,228.34,228.31,7.28]
[1757632174927,3.14,228.41,228.31,7.28]
[1757632175225,3.14,228.38,228.31,7.28]
[1757632179126,3.14,228.35,228.3,0.03361689]
[1757632179333,1.70286283,228.36,228.3,0.03361689]
[1757632179733,4.84286283,228.36,228.3,0.03361689]
[1757632181333,3.14,228.36,228.3,0.03361689]
[1757632188938,1.70286283,228.33,228.3,0.03361689]
[1757632189244,3.14,228.32,228.3,0.03361689]
[1757632189937,1.70286283,228.33,228.3,0.03361689]
[1757632191142,3.11,228.32,228.3,0.03361689]
[1757632191344,1.70286283,228.33,228.3,0.03361689]
[1757632191545,3.11,228.32,228.3,0.03361689]
[1757632193237,3.53265497,228.31,228.22,7.28]
[1757632193439,3.11,228.29,228.22,7.28]
[1757632194546,0.0296357,228.28,228.22,7.28]
[1757632195743,3.11,228.26,228.16,7.28]
[1757632196448,0.03030198,228.23,228.16,7.28]
[1757632197647,3.13,228.22,228.16,7.28]
[1757632199351,1.70286283,228.21,228.14,6.99]
[1757632199650,3.16030198,228.23,228.14,6.99]
[1757632200246,0.03030198,228.23,228.14,6.99]
[1757632201051,3.13,228.22,228.14,6.99]
[1757632201343,0.03030198,228.23,228.14,6.99]
[1757632201549,3.13,228.21,228.14,6.99]
[1757632201949,0.03030198,228.23,228.14,6.99]
[1757632201950,13.00018095,228.23,228.14,6.99]
[1757632202342,0.03030198,228.23,228.14,6.99]
[1757632202548,3.13,228.22,228.14,6.99]
[1757632203450,3.48961473,228.21,228.07,6.99]
[1757632203649,2.66037655,228.13,227.98,6.99]
[1757632203853,15.80037655,228.17,227.98,6.99]
[1757632203854,3.13,228.08,227.98,6.99]
[1757632204244,3.13,228.08,228.0,6.99]
[1757632204245,0.03271724,228.08,228.0,6.99]
[1757632204448,0.03271724,228.08,228.02,6.99]
[1757632204657,3.13,228.15,228.02,6.99]
[1757632204856,0.03008985,228.07,228.02,6.99]
[1757632206246,0.03008985,228.07,228.0,6.99]
[1757632206656,3.13,228.1,228.0,6.99]
[1757632207049,0.0335413,228.06,228.0,6.99]
[1757632210063,0.0335413,228.06,227.94,8.04]
[1757632210257,0.0335413,228.06,227.95,6.99]
[1757632211555,0.0335413,228.06,227.88,0.76320811]
[1757632211556,3.1635413,228.06,227.97,6.99]
[1757632211961,3.13,228.06,227.97,6.99]
[1757632212263,0.03016947,228.04,227.97,6.99]
[1757632212865,3.13,228.03,227.92,21.46]
[1757632213062,0.03016947,228.04,227.93,6.99]
[1757632220670,3.14,228.03,227.93,6.99]
[1757632230476,3.13,228.03,227.93,6.99]
[1757632231064,0.03016947,228.04,227.93,6.99]
[1757632231267,3.13,228.03,227.86,7.03]
[1757632231465,0.03016947,228.04,227.86,7.03]
[1757632231766,9.7,228.08,227.86,7.03]
[1757632231974,0.03322121,227.97,227.86,7.03]
[1757632232172,0.03322121,227.97,227.9,7.03]
[1757632232366,0.03322121,227.97,227.93,2.66037655]
[1757632232667,0.03322121,227.97,227.94,7.03]
[1757632233067,13.032898,228.08,227.94,7.03]
[1757632233379,13.032898,228.08,227.93,2.66037655]
[1757632233380,3.16,228.09,227.98,7.03]
[1757632234374,3.16,228.09,228.01,0.03028126]
[1757632234572,3.16,228.09,228.02,7.03]
[1757632236072,94.18493605,228.13,228.02,7.03]
[1757632236276,6.6253407,228.12,228.02,7.03]
[1757632236478,3.16,228.12,228.02,7.03]
[1757632237577,34.12,228.16,228.02,7.03]
[1757632237773,3.47024468,228.15,228.02,7.03]
[1757632237979,3.47024468,228.14,228.02,7.03]
[1757632238178,34.12,228.16,228.06,0.02969327]
[1757632238380,9.99600423,228.15,228.07,7.03]
[1757632238581,3.47250546,228.14,228.07,7.03]
[1757632238782,34.12,228.16,228.07,7.03]
[1757632238982,3.47214565,228.15,228.07,7.03]
[1757632239180,3.47214565,228.14,228.07,7.03]
[1757632239374,34.12,228.16,228.07,7.03]
[1757632239577,10.0026025,228.15,228.07,7.03]
[1757632239877,3.47496045,228.14,228.07,7.03]
[1757632240075,34.12,228.16,228.07,7.03]
[1757632240273,10.00504591,228.15,228.07,7.03]
[1757632240483,34.12,228.16,228.07,7.03]
[1757632240682,6.49818083,228.15,228.07,7.03]
[1757632240883,34.12,228.16,228.07,7.03]
[1757632241181,6.49818083,228.15,228.07,7.03]
[1757632241385,3.47808513,228.14,228.07,7.03]
[1757632241579,34.12,228.16,228.07,7.03]
[1757632241772,6.50262243,228.15,228.07,7.03]
[1757632241970,3.16,228.19,228.07,7.03]
[1757632242172,4.90485446,228.23,228.07,7.03]
[1757632242173,3.16,228.23,228.07,7.03]
[1757632242384,2.66037655,228.25,228.07,7.03]
[1757632242385,3.16,228.21,228.07,7.03]
[1757632242573,10.02652098,228.2,228.07,7.03]
[1757632242777,6.50766527,228.19,228.13,7.05870094]
[1757632242978,3.16,228.21,228.13,7.05870094]
[1757632243183,10.02737239,228.2,228.13,7.05870094]
[1757632243384,3.16,228.21,228.13,7.05870094]
[1757632243585,6.50972198,228.2,228.13,7.05870094]
[1757632243786,3.16,228.21,228.13,7.05870094]
[1757632243985,6.50977821,228.2,228.13,7.05870094]
[1757632244182,3.16,228.21,228.13,7.05870094]
[1757632252794,3.15,228.25,228.13,7.05870094]
[1757632253494,16.19191623,228.28,228.13,7.05870094]
[1757632253697,3.15,228.28,228.13,15.35870094]
[1757632253890,3.15,228.28,228.14,7.03]
[1757632254299,3.15,228.28,228.19,7.03]
[1757632258599,5.81037655,228.28,228.19,7.03]
[1757632259698,3.15,228.28,228.19,7.03]
[1757632260398,1.70247205,228.26,228.19,7.03]
[1757632274508,3.15,228.28,228.19,7.03]
[1757632274711,1.70247205,228.25,228.19,7.03]
[1757632275708,3.15,228.37,228.21,7.52]
[1757632275904,10.01352584,228.36,228.21,7.52]
[1757632276109,3.15,228.34,228.21,7.52]
[1757632276310,3.15,228.32,228.26,0.03111195]
[1757632276512,3.49291173,228.33,228.26,0.03111195]
[1757632276513,4.85247205,228.3,228.26,7.55111195]
[1757632276908,4.85247205,228.3,228.26,0.03111195]
[1757632277212,3.15,228.3,228.27,7.52]
[1757632277515,4.85247205,228.3,228.27,7.52]
[1757632279316,1.70247205,228.31,228.26,0.03111195]
[1757632279621,1.70247205,228.33,228.27,7.52]
[1757632280321,1.70247205,228.34,228.27,7.52]
[1757632281318,3.15,228.36,228.27,7.52]
[1757632281523,1.70247205,228.36,228.27,7.52]
[1757632283925,3.15,228.39,228.27,7.52]
[1757632284122,5.20162572,228.38,228.27,7.52]
[1757632284423,1.70247205,228.38,228.27,7.52]
[1757632284622,1.70247205,228.38,228.31,7.52]
[1757632286326,1.70247205,228.36,228.3,0.03313372]
[1757632287324,1.70247205,228.36,228.31,7.52]
[1757632287516,1.70247205,228.36,228.3,0.03313372]
[1757632287721,1.70247205,228.36,228.31,7.38]
[1757632288016,3.15,228.39,228.31,7.38]
[1757632288220,3.49751469,228.38,228.31,7.38]
[1757632288413,3.15,228.39,228.31,7.38]
[1757632288615,1.70247205,228.37,228.31,7.38]
[1757632290721,1.70247205,228.33,228.31,7.38]
[1757632290922,1.70247205,228.33,228.3,0.03313372]
[1757632291227,1.70247205,228.33,228.23,7.38]
[1757632291426,1.70247205,228.33,228.29,0.0298734]
[1757632291624,1.70247205,228.33,228.3,7.38]
[1757632292521,3.15,228.35,228.29,7.4098734]
[1757632295724,3.15,228.42,228.29,7.4098734]
[1757632295925,1.70247205,228.37,228.29,7.4098734]
[1757632296126,1.70247205,228.37,228.29,7.38]
[1757632296327,1.70247205,228.37,228.31,0.02777488]
[1757632297032,294.44,228.43,228.31,0.02777488]
[1757632297227,1.70247205,228.39,228.31,0.02777488]
[1757632298226,4.90485446,228.5,228.31,0.02777488]
[1757632298426,1.70247205,228.43,228.31,0.02777488]
[1757632298627,1.70247205,228.43,228.28,1.70247205]
[1757632299030,1.70247205,228.43,228.35,0.02829536]
[1757632300430,13.19208774,228.5,228.35,0.02829536]
[1757632300623,1.70247205,228.44,228.35,0.02829536]
[1757632300930,1.70247205,228.44,228.3,8.5]
[1757632301225,1.70247205,228.44,228.37,0.0305783]
[1757632301430,3.15,228.43,228.37,0.0305783]
[1757632302428,3.15,228.41,228.37,0.0305783]
[1757632302734,3.15,228.41,228.34,7.38]
[1757632303028,1.70247205,228.42,228.37,0.03224272]
[1757632303730,3.15,228.5,228.37,0.03224272]
[1757632304033,1.70247205,228.43,228.34,7.38]
[1757632304234,3.15,228.42,228.34,7.38]
[1757632304427,3.15,228.42,228.41,0.03031858]
[1757632304621,3.15,228.42,228.34,7.38]
[1757632305129,1.70247205,228.44,228.39,0.03230899]
[1757632306034,3.15,228.43,228.39,0.03230899]
[1757632306226,1.70247205,228.44,228.39,0.03230899]
[1757632306738,3.15,228.43,228.39,0.03230899]
[1757632307133,1.70247205,228.44,228.39,0.03230899]
[1757632307436,3.15,228.43,228.39,0.03230899]
[1757632307734,1.70247205,228.44,228.39,0.03230899]
[1757632308736,3.15,228.43,228.39,0.03230899]
[1757632310239,1.70247205,228.44,228.39,0.03230899]
[1757632310632,3.15,228.43,228.39,0.03230899]
[1757632311538,1.70247205,228.44,228.39,0.03230899]
[1757632312030,3.15,228.43,228.39,0.03230899]
[1757632312639,1.70247205,228.44,228.39,0.03230899]
[1757632312842,3.15,228.43,228.39,0.03230899]
[1757632313037,3.15,228.4,228.39,0.03230899]
[1757632314038,3.15,228.39,228.31,7.38]
[1757632314238,1.70247205,228.37,228.31,7.38]
[1757632314435,4.85247205,228.37,228.31,7.38]
[1757632315242,0.03330849,228.36,228.28,55.27561692]
[1757632315437,0.03330849,228.36,228.29,7.38]
[1757632315636,0.03330849,228.36,228.3,1.70247205]
[1757632315831,0.03330849,228.36,228.31,7.38]
[1757632316435,0.03330849,228.36,228.34,7.38]
[1757632318340,0.03330849,228.36,228.34,7.22]
[1757632318641,0.03330849,228.36,228.33,1.70247205]
[1757632318846,0.03330849,228.36,228.34,7.22]
[1757632319046,0.03330849,228.36,228.33,1.70247205]
[1757632319342,0.03330849,228.36,228.33,7.22]
[1757632319841,0.03330849,228.36,228.32,1.70247205]
[1757632320236,0.03330849,228.36,228.33,7.22]
[1757632320442,0.03330849,228.36,228.29,9.87591404]
[1757632320642,0.03330849,228.36,228.3,7.22]
[1757632323945,0.03330849,228.36,228.32,7.22]
[1757632324349,0.03330849,228.36,228.34,7.22]
[1757632325749,3.15,228.43,228.34,7.22]
[1757632325949,3.15,228.41,228.34,7.22]
[1757632327052,6.58284025,228.4,228.33,0.02780311]
[1757632327257,3.15,228.39,228.33,0.02780311]
[1757632327453,3.15,228.39,228.31,7.22]
[1757632327753,3.15,228.39,228.28,162.21561692]
[1757632327754,3.15,228.37,228.34,0.03300866]
[1757632327956,3.15,228.35,228.34,0.03300866]
[1757632331859,3.15,228.38,228.34,0.03300866]
[1757632332059,3.15,228.38,228.35,7.22]
[1757632332060,3.03526034,228.37,228.35,7.22]
[1757632332360,10.06,228.45,228.34,0.03300866]
[1757632332658,13.18271901,228.44,228.34,0.03300866]
[1757632332860,3.15,228.42,228.34,0.03300866]
[1757632333051,3.15,228.4,228.34,0.03300866]
[1757632333252,10.03271901,228.39,228.34,7.25300866]
[1757632333553,13.18271901,228.38,228.34,7.25300866]
[1757632333858,3.03494734,228.37,228.35,7.22]
[1757632334059,3.15,228.41,228.35,7.22]
[1757632334250,14.96485446,228.45,228.34,0.03300866]
[1757632334251,3.15,228.39,228.34,0.03300866]
[1757632334452,13.18295629,228.38,228.34,7.25300866]
[1757632334651,3.03509506,228.37,228.34,7.25300866]
[1757632334851,3.15,228.38,228.34,7.25300866]
[1757632335058,3.03503188,228.37,228.34,7.25300866]
[1757632335262,3.15,228.38,228.34,7.25300866]
[1757632335458,3.03500342,228.37,228.34,7.25300866]
[1757632335662,3.15,228.38,228.34,7.25300866]
[1757632335955,3.03500342,228.37,228.35,7.22]
[1757632336161,3.15,228.38,228.35,7.22]
[1757632336357,3.03509573,228.37,228.35,7.22]
[1757632336556,3.15,228.38,228.35,7.22]
[1757632336760,3.03509573,228.37,228.35,7.22]
[1757632336961,3.15,228.38,228.35,7.22]
[1757632337161,3.03509573,228.37,228.35,7.22]
[1757632337364,3.15,228.38,228.35,7.22]
[1757632337764,10.06,228.45,228.34,7.25300866]
[1757632337968,3.15,228.43,228.34,7.25300866]
[1757632338263,10.03342249,228.42,228.34,7.25300866]
[1757632338462,10.03342249,228.41,228.34,7.25300866]
[1757632338663,3.15,228.43,228.34,7.25300866]
[1757632338664,10.03342249,228.4,228.34,7.25300866]
[1757632338858,6.58304167,228.39,228.34,0.03300866]
[1757632339066,3.15,228.43,228.35,7.22]
[1757632339264,10.02832564,228.42,228.35,7.22]
[1757632339453,10.02832564,228.41,228.35,7.22]
[1757632339659,10.02832564,228.4,228.34,7.25300866]
[1757632339859,10.02832564,228.39,228.34,0.03300866]
[1757632340064,3.15,228.42,228.35,7.22]
[1757632340263,10.02825253,228.41,228.35,7.22]
[1757632340467,10.02825253,228.4,228.34,0.03300866]
[1757632340765,10.02825253,228.39,228.34,0.03300866]
[1757632340958,3.15,228.42,228.35,7.22]
[1757632341156,10.02814817,228.41,228.35,7.22]
[1757632341467,10.02814817,228.4,228.34,0.03300866]
[1757632341771,10.02814817,228.39,228.34,0.03300866]
[1757632341966,3.15,228.42,228.35,7.22]
[1757632342267,10.02879248,228.41,228.35,7.22]
[1757632342564,10.02879248,228.4,228.35,7.22]
[1757632342769,3.15,228.47,228.35,7.22]
[1757632342970,10.02862828,228.46,228.35,7.22]
[1757632343165,10.02862828,228.45,228.35,7.22]
[1757632343366,10.02862828,228.44,228.38,0.03205303]
[1757632343561,10.02862828,228.43,228.39,7.22]
[1757632343765,3.15,228.47,228.39,7.22]
[1757632344071,10.02799284,228.46,228.39,7.22]
[1757632344370,10.02799284,228.45,228.39,7.22]
[1757632344560,10.02799284,228.44,228.39,7.22]
[1757632344758,10.02799284,228.43,228.39,7.22]
[1757632344963,3.15,228.47,228.39,7.22]
[1757632345170,10.02712273,228.46,228.39,7.22]
[1757632345370,10.02712273,228.45,228.39,7.22]
[1757632345572,10.02712273,228.44,228.39,7.22]
[1757632345773,10.02712273,228.43,228.38,0.03205303]
[1757632345968,3.15,228.47,228.39,7.22]
[1757632346163,10.0263046,228.46,228.39,7.22]
[1757632346372,10.0263046,228.45,228.39,7.22]
[1757632346573,3.15,228.47,228.39,7.22]
[1757632346773,10.02526948,228.46,228.39,7.22]
[1757632346978,10.02526948,228.45,228.39,7.22]
[1757632347278,3.15,228.47,228.39,7.22]
[1757632347469,10.02369856,228.46,228.39,7.22]
[1757632347672,10.02369856,228.45,228.39,7.22]
[1757632347975,3.15,228.47,228.39,7.22]
[1757632348173,10.0144424,228.46,228.39,7.22]
[1757632348377,3.02811055,228.45,228.39,7.22]
[1757632348580,3.15,228.47,228.39,7.22]
[1757632348782,10.00573233,228.46,228.39,7.22]
[1757632348977,3.15,228.47,228.39,7.22]
[1757632349183,10.00546512,228.46,228.39,7.22]
[1757632349484,3.13,228.53,228.39,7.22]
[1757632349687,10.00283311,228.52,228.39,7.22]
[1757632349880,13.13283311,228.51,228.39,7.22]
[1757632350080,10.00283311,228.5,228.39,7.22]
[1757632350281,3.02672465,228.49,228.43,7.23344262]
[1757632350482,3.13,228.51,228.43,7.23344262]
[1757632350682,9.9985101,228.5,228.43,7.23344262]
[1757632350984,3.02564161,228.49,228.43,7.23344262]
[1757632351283,3.13,228.51,228.43,7.23344262]
[1757632351483,9.99481741,228.5,228.43,7.23344262]
[1757632351684,3.13,228.51,228.43,7.23344262]
[1757632351985,9.99481741,228.5,228.43,7.23344262]
[1757632352175,3.13,228.51,228.43,7.23344262]
[1757632352482,3.13,228.49,228.43,0.03344262]
[1757632352886,3.13,228.49,228.43,7.23344262]
[1757632353483,3.13,228.55,228.43,7.23344262]
[1757632353683,3.13,228.53,228.43,7.23344262]
[1757632353883,9.98955134,228.52,228.43,7.23344262]
[1757632354084,9.98955134,228.51,228.43,7.23344262]
[1757632354287,3.13,228.53,228.43,7.23344262]
[1757632354488,9.98635219,228.52,228.43,7.23344262]
[1757632354676,3.13,228.53,228.43,7.23344262]
[1757632354878,3.02170881,228.52,228.43,7.23344262]
[1757632355082,3.13,228.53,228.43,7.23344262]
[1757632373797,3.14,228.59,228.43,7.23344262]
[1757632374095,3.14,228.57,228.43,7.2]
[1757632374502,3.14,228.57,228.49,7.23131405]
[1757632377405,3.14,228.56,228.49,7.23131405]
[1757632380712,3.13,228.55,228.49,7.23131405]
[1757632388519,1.6978181,228.57,228.49,7.23131405]
[1757632388716,3.13,228.55,228.49,7.23131405]
[1757632390519,3.13,228.56,228.49,0.03131405]
[1757632390720,3.02201317,228.55,228.49,0.03131405]
[1757632390919,3.13,228.56,228.49,0.03131405]
[1757632391119,3.02201317,228.55,228.49,0.03131405]
[1757632391319,3.13,228.56,228.49,0.03131405]
[1757632391520,9.98379247,228.55,228.49,0.03131405]
[1757632391720,3.13,228.56,228.49,0.03131405]
[1757632391916,9.98379247,228.55,228.49,0.03131405]
[1757632392117,3.13,228.53,228.5,7.3]
[1757632395827,1.6978181,228.58,228.5,7.3]
[1757632395828,3.13,228.57,228.5,7.3]
[1757632396124,9.99555234,228.56,228.5,7.3]
[1757632396319,9.99555234,228.55,228.5,7.3]
[1757632396522,13.12555234,228.54,228.49,0.03131405]
[1757632396721,3.02683294,228.53,228.5,7.3]
[1757632396923,3.13,228.54,228.49,0.03131405]
[1757632397218,3.02723266,228.53,228.5,7.3]
[1757632397524,3.13,228.54,228.5,7.3]
[1757632397720,3.02769252,228.53,228.5,7.3]
[1757632398024,3.13,228.54,228.49,0.03131405]
[1757632398225,3.02769252,228.53,228.5,7.3]
[1757632398423,3.02769252,228.52,228.5,7.3]
[1757632398626,3.13,228.59,228.5,7.3]
[1757632398819,11.72751312,228.58,228.5,7.3]
[1757632399024,3.13,228.56,228.5,7.3]
[1757632399226,10.02969502,228.55,228.5,7.3]
[1757632399420,3.13,228.53,228.5,7.3]
[1757632399723,3.0571356,228.52,228.5,7.3]
[1757632399925,3.13,228.53,228.5,7.3]
[1757632400123,3.05768213,228.52,228.49,0.03131405]
[1757632400323,3.05768213,228.51,228.49,0.03131405]
[1757632400530,3.13,228.53,228.5,7.3]